fUSD/lending_fUSD_20250407
["ID","MTS","AMOUNT","RATE_DAILY","PERIOD"]
[357379952,1744027841216,-3833.9116937,0.00037717,2]
[357379953,1744027841225,-2575.51321668,0.00037723,2]
[357379954,1744027841234,-2658.86,0.00037733,2]
[357379955,1744027841244,-2658.86,0.00037743,2]
[357379956,1744027841253,-2658.86,0.00037753,2]
[357379957,1744027841262,-500.0,0.00037773,5]
[357379958,1744027841271,-500.0,0.00037773,5]
[357379959,1744027841281,-5066.8175,0.00037945,10]
[357379960,1744027841291,-1000.0,0.00037959,30]
[357379961,1744027841300,-1307.12,0.00038038,2]
[357379962,1744027841310,-500.0,0.000381,2]
[357379963,1744027841325,-173.73,0.00038443,2]
[357379964,1744027841334,-300.0,0.00038653,2]
[357379965,1744027841344,-1609.98,0.00038843,2]
[357379966,1744027841354,-500.0,0.00038895,3]
[357379967,1744027841363,-745.93,0.00038907,2]
[357379968,1744027841372,-500.0,0.00038945,5]
[357379969,1744027841381,-500.01597978,0.00038945,5]
[357379970,1744027841392,-250.0,0.00038947,2]
[357379971,1744027841401,-150.0,0.00038964,2]
[357379972,1744027841411,-172.68,0.00038973,2]
[357379973,1744027841421,-1500.0,0.00038981,120]
[357379974,1744027841430,-750.0,0.00039,2]
[357379975,1744027841440,-13237.1086128,0.00039004,3]
[357379976,1744027841450,-1871.55,0.00039008,2]
[357379977,1744027841460,-3221.27,0.00039014,14]
[357379978,1744027841469,-1195.28,0.00039028,2]
[357379979,1744027841480,-220.97,0.00039034,2]
[357379980,1744027841489,-502.35256817,0.0003908,5]
[357379981,1744027841499,-355.47783704,0.0003908,5]
[357379982,1744027841510,-503.0990967,0.0003908,5]
[357379983,1744027841519,-500.0,0.0003908,5]
[357379984,1744027841528,-500.0,0.0003908,5]
[357379985,1744027841537,-500.0,0.0003908,5]
[357379986,1744027841546,-1001.43,0.00039153,120]
[357379987,1744027841555,-9583.08772509,0.0003924,2]
[357379988,1744027841565,-1424.44813988,0.00039293,116]
[357379989,1744027841575,-7645.79804767,0.00039612,3]
[357379990,1744027841585,-13237.1086128,0.00039623,3]
[357379991,1744027841595,-7645.79804767,0.00039623,3]
[357379992,1744027841604,-7645.79804767,0.00039666,3]
[357379993,1744027841614,-500.0,0.00039673,5]
[357379994,1744027841623,-500.0,0.00039673,5]
[357379995,1744027841633,-13237.1086128,0.00039676,3]
[357379996,1744027841642,-15291.5960953,0.00039676,3]
[357379997,1744027841653,-31498.31,0.00039686,2]
[357379998,1744027841662,-200.0,0.00039697,7]
[357379999,1744027841671,-200.0,0.00039802,120]
[357380000,1744027841681,-1307.12,0.00039849,2]
[357380001,1744027841691,-934.62863859,0.00039952,2]
[357380002,1744027841700,-503.67275824,0.00039952,5]
[357380003,1744027841710,-200.0,0.0004,120]
[357380004,1744027841720,-500.0,0.0004,120]
[357380005,1744027841730,-7645.79804767,0.00040048,3]
[357380006,1744027841739,-13237.1086128,0.00040058,3]
[357380007,1744027841749,-15291.5960953,0.00040058,3]
[357380008,1744027841760,-151.38,0.00040058,2]
[357380009,1744027841770,-5520.22721933,0.00040068,2]
[357380010,1744027841787,-481.38955607,0.00040068,2]
[357380011,1744027841799,-384.025,0.00040068,2]
[357380012,1744027841826,-495.5092362,0.00040068,2]
[357380018,1744027843437,-25.56344816,0.00040068,2]
[357380019,1744027843462,-2698.14904166,0.00040068,2]
[357380020,1744027843571,-293.34679536,0.00040068,2]
[357380021,1744027843627,-758.57759602,0.00040068,2]
[357380022,1744027843639,-1618.75368924,0.00040068,2]
[357380053,1744027846462,-11624.45841796,0.00040068,2]
[357380055,1744027846471,-171.15,0.00040146,2]
[357380057,1744027846480,-501.57045553,0.00040431,5]
[357380059,1744027846489,-502.41170348,0.00040431,5]
[357380060,1744027846499,-1000.0,0.00040711,2]
[357380062,1744027846508,-192.02926471,0.00040743,19]
[357380064,1744027846518,-7645.79804767,0.0004081,3]
[357380067,1744027846527,-13237.1086128,0.0004082,3]
[357380069,1744027846537,-7645.79804767,0.00040826,3]
[357380071,1744027846547,-12351.53714663,0.0004083,2]
[357380073,1744027846556,-14721.5909267,0.00040836,2]
[357380075,1744027846565,-7645.79804767,0.00040844,3]
[357380076,1744027846574,-13237.1086128,0.00040854,3]
[357380077,1744027846583,-7645.79804767,0.00040854,3]
[357380078,1744027846592,-9583.08772509,0.00040864,15]
[357380079,1744027846602,-166.67,0.00040967,2]
[357380080,1744027846611,-711.719995,0.00041,5]
[357380081,1744027846621,-2366.0,0.00041,5]
[357380082,1744027846630,-800.0,0.00041,2]
[357380083,1744027846639,-4589.0,0.00041,117]
[357380084,1744027846648,-7645.79804767,0.00041076,3]
[357380085,1744027846659,-13237.1086128,0.00041086,3]
[357380086,1744027846668,-7645.79804767,0.00041086,3]
[357380087,1744027846677,-151.8,0.00041096,2]
[357380088,1744027846687,-197.97038634,0.00041096,2]
[357380089,1744027846696,-200.0,0.00041096,20]
[357380090,1744027846705,-200.0,0.00041096,20]
[357380091,1744027846714,-200.0,0.00041096,20]
[357380092,1744027846724,-200.0,0.00041096,20]
[357380093,1744027846733,-500.0,0.00041096,31]
[357380094,1744027846742,-500.0,0.00041096,31]
[357380095,1744027846751,-500.0,0.00041096,31]
[357380096,1744027846761,-500.0,0.00041096,31]
[357380097,1744027846770,-500.0,0.00041096,31]
[357380099,1744027846779,-500.0,0.00041096,31]
[357380100,1744027846788,-500.0,0.00041096,31]
[357380101,1744027846798,-500.0,0.00041096,31]
[357380102,1744027846807,-500.0,0.00041096,31]
[357380103,1744027846816,-500.0,0.00041096,31]
[357380104,1744027846826,-500.0,0.00041096,31]
[357380105,1744027846835,-500.0,0.00041096,31]
[357380106,1744027846848,-500.0,0.00041096,31]
[357380107,1744027846857,-500.0,0.00041096,31]
[357380108,1744027846867,-500.0,0.00041096,31]
[357380109,1744027846877,-500.0,0.00041096,31]
[357380110,1744027846886,-500.0,0.00041096,31]
[357380111,1744027846896,-500.0,0.00041096,31]
[357380112,1744027846907,-500.0,0.00041096,31]
[357380113,1744027846917,-500.0,0.00041096,31]
[357380114,1744027846926,-500.0,0.00041096,31]
[357380115,1744027846935,-622.46272043,0.00041096,31]
[357380116,1744027846945,-500.0,0.00041096,31]
[357380117,1744027846954,-500.0,0.00041096,31]
[357380118,1744027846964,-500.0,0.00041096,31]
[357380119,1744027846973,-2000.0,0.00041252,13]
[357380120,1744027846982,-1629.0,0.00041252,13]
[357380121,1744027846992,-1871.55,0.00041272,2]
[357380122,1744027847003,-7645.79804767,0.00041298,3]
[357380123,1744027847013,-443.76,0.00041309,120]
[357380124,1744027847022,-200.0,0.000414,120]
[357380125,1744027847032,-689.40308301,0.00041493,2]
[357380126,1744027847041,-500.0,0.00041513,120]
[357380127,1744027847050,-504.81,0.00041613,120]
[357380128,1744027847059,-1307.12,0.00041661,2]
[357380129,1744027847069,-171.15,0.00041802,2]
[357380130,1744027847078,-1842.13205638,0.00041861,14]
[357380131,1744027847087,-500.0,0.00041973,10]
[357380132,1744027847096,-150.0,0.00041973,10]
[357380133,1744027847105,-7645.79804767,0.0004198,3]
[357380134,1744027847115,-13237.1086128,0.0004199,3]
[357380135,1744027847125,-22937.394143,0.0004199,3]
[357380136,1744027847134,-7645.79804767,0.0004199,3]
[357380137,1744027847144,-3300.0,0.00042,30]
[357380138,1744027847153,-431.44272926,0.00042,60]
[357380139,1744027847165,-2206.86792129,0.00042,120]
[357380140,1744027847175,-200.0,0.00042,120]
[357380141,1744027847185,-190.0,0.00042,14]
[357380142,1744027847195,-175.06,0.00042,120]
[357380143,1744027847205,-4599.87,0.00042,120]
[357380144,1744027847215,-1060.84,0.00042,120]
[357380145,1744027847224,-22500.0,0.00042,120]
[357380146,1744027847234,-292.62,0.00042,120]
[357380147,1744027847244,-161.19,0.00042,120]
[357380148,1744027847255,-2618.46,0.00042,120]
[357380149,1744027847264,-296.43914054,0.00042,30]
[357380150,1744027847274,-150.0,0.00042,30]
[357380151,1744027847283,-13239.83,0.00042,120]
[357380152,1744027847293,-13237.1086128,0.00042,3]
[357380153,1744027847303,-1333.2445488,0.0004201,2]
[357380154,1744027847316,-7645.79804767,0.00042215,3]
[357380155,1744027847326,-240.0,0.0004222,6]
[357380156,1744027847336,-22141.08,0.00042225,120]
[357380157,1744027847345,-164.86140192,0.00042266,7]
[357380158,1744027847355,-164.8,0.0004237,2]
[357380159,1744027847366,-250.0,0.00042388,2]
[357380160,1744027847375,-7645.79804767,0.0004244,3]
[357380161,1744027847386,-13237.1086128,0.00042477,3]
[357380162,1744027847396,-7645.79804767,0.00042477,3]
[357380163,1744027847408,-9583.08772509,0.00042487,15]
[357380164,1744027847419,-1093.49899292,0.000425,60]
[357380165,1744027847429,-250.0,0.000425,120]
[357380166,1744027847438,-350.0,0.00042521,10]
[357380167,1744027847448,-155.19,0.00042583,2]
[357380168,1744027847458,-1879.167619,0.000426,39]
[357380169,1744027847468,-150.0,0.00042647,20]
[357380170,1744027847477,-529.63399662,0.000427,100]
[357380171,1744027847487,-236.03245057,0.00042761,17]
[357380172,1744027847496,-505.95711112,0.00042761,8]
[357380173,1744027847506,-7645.79804767,0.0004279,3]
[357380174,1744027847515,-1296.53022455,0.00042797,30]
[357380175,1744027847525,-2000.0,0.000428,120]
[357380176,1744027847535,-172.0,0.000428,30]
[357380177,1744027847545,-353.54959008,0.000428,120]
[357380178,1744027847554,-13237.1086128,0.0004284,3]
[357380179,1744027847564,-7645.79804767,0.00042842,3]
[357380180,1744027847574,-7645.79804767,0.0004285,3]
[357380181,1744027847584,-7645.79804767,0.00042851,3]
[357380182,1744027847594,-13237.1086128,0.00042851,3]
[357380183,1744027847604,-177.34800861,0.00042851,7]
[357380184,1744027847614,-151.38,0.00042851,2]
[357380185,1744027847624,-151.38,0.00042851,2]
[357380186,1744027847633,-6600.0,0.0004286,30]
[357380187,1744027847643,-774.1127352,0.0004286,4]
[357380188,1744027847653,-3000.0,0.0004286,30]
[357380189,1744027847663,-3000.0,0.0004286,30]
[357380190,1744027847673,-167.12360171,0.0004286,30]
[357380191,1744027847682,-150.0,0.0004286,120]
[357380192,1744027847692,-1000.0,0.00042861,4]
[357380193,1744027847702,-151.0,0.00042861,14]
[357380194,1744027847712,-305.195089,0.00042861,14]
[357380195,1744027847722,-305.195089,0.00042861,14]
[357380196,1744027847732,-151.0,0.00042861,14]
[357380197,1744027847742,-167.209644,0.00042861,14]
[357380198,1744027847752,-272.725284,0.00042861,14]
[357380199,1744027847762,-272.725284,0.00042861,14]
[357380200,1744027847772,-151.0,0.00042861,14]
[357380201,1744027847783,-151.0,0.00042861,14]
[357380202,1744027847793,-151.0,0.00042861,14]
[357380203,1744027847803,-151.0,0.00042861,14]
[357380204,1744027847812,-151.0,0.00042861,14]
[357380205,1744027847822,-2091.177409,0.00042861,14]
[357380206,1744027847832,-2091.177409,0.00042861,14]
[357380207,1744027847841,-437.6822,0.00042861,73]
[357380208,1744027847851,-437.68221,0.00042861,73]
[357380209,1744027847860,-437.68221,0.00042861,73]
[357380210,1744027847870,-437.68221,0.00042861,73]
[357380211,1744027847880,-437.68221,0.00042861,73]
[357380212,1744027847890,-437.68221,0.00042861,73]
[357380213,1744027847900,-386.92058115,0.00042861,30]
[357380214,1744027847913,-389.43938166,0.00042861,2]
[357380215,1744027847923,-84918.85870068,0.00042861,2]
[357380216,1744027847934,-560.38839508,0.00042861,5]
[357380217,1744027847946,-10524.19113968,0.00042861,2]
[357380218,1744027847957,-1210.0,0.00042861,2]
[357380219,1744027847967,-701.41884854,0.00042861,2]
[357380220,1744027847977,-361.19706366,0.00042861,2]
[357380221,1744027847993,-1978.62616665,0.00042861,5]
[357380222,1744027848008,-347.37128484,0.00042861,2]
[357380223,1744027848019,-1021.10012443,0.00042861,15]
[357380224,1744027848030,-759.60458485,0.00042861,2]
[357380225,1744027848039,-114643.89680072,0.00042861,2]
[357380226,1744027848049,-1026.81000812,0.00042861,2]
[357380227,1744027848059,-5170.36500315,0.00042861,2]
[357380228,1744027848068,-2448.69188237,0.00042861,2]
[357380229,1744027848078,-4035.8533924,0.00042861,2]
[357380230,1744027848087,-300.0,0.00042861,15]
[357380231,1744027848097,-6879.59671669,0.00042861,2]
[357380232,1744027848107,-2698.30355589,0.00042861,2]
[357380233,1744027848116,-214956.27166174,0.00042861,2]
[357380234,1744027848126,-150.89370199,0.00042861,2]
[357380235,1744027848136,-973.89107295,0.00042861,5]
[357380236,1744027848145,-248.45116877,0.00042861,2]
[357380237,1744027848156,-163.96990733,0.00042861,2]
[357380238,1744027848165,-1258.26806194,0.00042861,2]
[357380239,1744027848175,-7698.41786071,0.00042861,2]
[357380240,1744027848185,-1234.59013792,0.00042861,15]
[357380241,1744027848195,-1038.60366658,0.00042861,2]
[357380242,1744027848204,-590.3026737,0.00042861,5]
[357380243,1744027848214,-246.40439825,0.00042861,2]
[357380244,1744027848223,-593.16942514,0.00042861,2]
[357380245,1744027848234,-9214.10077522,0.00042861,2]
[357380246,1744027848243,-1308.02826819,0.00042861,2]
[357380247,1744027848253,-3411.52261691,0.00042861,2]
[357380248,1744027848263,-40093.95625176,0.00042861,2]
[357380249,1744027848272,-239.96188744,0.00042861,7]
[357380250,1744027848282,-12804.16593132,0.00042861,2]
[357380251,1744027848291,-1916.03002276,0.00042861,2]
[357380252,1744027848301,-183.56209647,0.00042861,2]
[357380253,1744027848313,-5008.62191993,0.00042861,2]
[357380254,1744027848322,-1051.98811141,0.00042861,3]
[357380255,1744027848332,-643.0,0.00042861,2]
[357380256,1744027848341,-1601.19720165,0.00042861,5]
[357380257,1744027848351,-967.6388189,0.00042861,2]
[357380258,1744027848360,-8611.71714464,0.00042861,2]
[357380259,1744027848370,-25294.60545437,0.00042861,2]
[357380260,1744027848379,-571.68125797,0.00042861,2]
[357380261,1744027848389,-5827.01466929,0.00042861,2]
[357380262,1744027848399,-1832.42933206,0.00042861,2]
[357380263,1744027848409,-3235.50671675,0.00042861,2]
[357380264,1744027848418,-154.06847991,0.00042861,2]
[357380265,1744027848427,-174.97193435,0.00042861,2]
[357380266,1744027848437,-7069.29347368,0.00042861,2]
[357380267,1744027848446,-550.0,0.00042861,2]
[357380268,1744027848456,-1462.92162761,0.00042861,2]
[357380269,1744027848467,-1005.70795054,0.00042861,2]
[357380270,1744027848477,-10680.08598057,0.00042861,2]
[357380271,1744027848487,-801.25334525,0.00042861,2]
[357380272,1744027848496,-24903.26163601,0.00042861,2]
[357380273,1744027848506,-240.33105568,0.00042861,2]
[357380274,1744027848515,-561.90170274,0.00042861,2]
[357380275,1744027848524,-150.0,0.00042861,2]
[357380276,1744027848533,-1601.43744717,0.00042861,2]
[357380277,1744027848543,-7757.52686352,0.00042861,2]
[357380278,1744027848553,-605.74734483,0.00042861,2]
[357380279,1744027848564,-624.90927908,0.00042861,2]
[357380280,1744027848575,-214.22392149,0.00042861,2]
[357380281,1744027848584,-41584.76188318,0.00042861,2]
[357380282,1744027848595,-8119.11395317,0.00042861,2]
[357380283,1744027848604,-229.18814846,0.00042861,2]
[357380284,1744027848614,-825.33260897,0.00042861,7]
[357380285,1744027848623,-1076.28752703,0.00042861,5]
[357380286,1744027848632,-4999.82627243,0.00042861,2]
[357380287,1744027848642,-14748.66766223,0.00042861,2]
[357380288,1744027848651,-10028.18260393,0.00042861,2]
[357380289,1744027848661,-565.14678159,0.00042861,2]
[357380290,1744027848671,-17138.82035083,0.00042861,2]
[357380291,1744027848680,-10046.78202827,0.00042861,2]
[357380292,1744027848690,-8500.00166959,0.00042861,2]
[357380293,1744027848700,-248.24748775,0.00042861,2]
[357380294,1744027848710,-2722.94218614,0.00042861,2]
[357380295,1744027848720,-848.67070383,0.00042861,30]
[357380296,1744027848730,-607.43464419,0.00042862,30]
[357380297,1744027848739,-152.00000001,0.00042862,30]
[357380298,1744027848749,-200.0,0.00042862,7]
[357380299,1744027848759,-200.0,0.00042862,7]
[357380300,1744027848769,-200.0,0.00042862,7]
[357380301,1744027848779,-151.0,0.00042882,14]
[357380302,1744027848789,-230.428282,0.00042882,14]
[357380303,1744027848799,-151.0,0.00042882,14]
[357380304,1744027848809,-500.0,0.00042887,2]
[357380305,1744027848819,-342.4614645,0.00042887,2]
[357380306,1744027848829,-227.0,0.0004295,120]
[357380307,1744027848839,-227.0,0.0004296,120]
[357380308,1744027848849,-227.0,0.0004297,120]
[357380309,1744027848859,-296.79,0.0004297,120]
[357380310,1744027848869,-7645.79804767,0.0004297,3]
[357380311,1744027848879,-13237.1086128,0.0004298,3]
[357380312,1744027848888,-15291.5960953,0.0004298,3]
[357380313,1744027848899,-151.0,0.0004299,14]
[357380314,1744027849143,-151.0,0.0004299,14]
[357380315,1744027849156,-151.0,0.0004299,14]
[357380316,1744027849166,-151.0,0.0004299,14]
[357380317,1744027849175,-151.0,0.0004299,14]
[357380318,1744027849184,-151.0,0.0004299,14]
[357380319,1744027849194,-151.0,0.0004299,14]
[357380320,1744027849203,-305.195089,0.0004299,14]
[357380321,1744027849213,-305.195089,0.0004299,14]
[357380322,1744027849222,-272.725284,0.0004299,14]
[357380323,1744027849232,-595.661069,0.0004299,14]
[357380324,1744027849241,-272.725284,0.0004299,14]
[357380325,1744027849250,-595.661069,0.0004299,14]
[357380326,1744027849260,-151.0,0.0004299,14]
[357380327,1744027849269,-151.0,0.0004299,14]
[357380328,1744027849279,-185.794112,0.0004299,14]
[357380329,1744027849289,-178.60976,0.0004299,14]
[357380330,1744027849299,-151.0,0.0004299,14]
[357380331,1744027849308,-151.0,0.0004299,14]
[357380332,1744027849321,-656.281935,0.0004299,14]
[357380333,1744027849330,-656.281935,0.0004299,14]
[357380334,1744027849340,-2091.177409,0.0004299,14]
[357380335,1744027849352,-151.0,0.0004299,14]
[357380336,1744027849362,-2017.531787,0.0004299,14]
[357380337,1744027849372,-2091.177409,0.0004299,14]
[357380338,1744027849381,-151.0,0.0004299,14]
[357380339,1744027849394,-151.0,0.0004299,14]
[357380340,1744027849404,-2017.531787,0.0004299,14]
[357380341,1744027849414,-151.0,0.0004299,14]
[357380342,1744027849423,-151.0,0.0004299,14]
[357380343,1744027849433,-13237.1086128,0.0004299,3]
[357380344,1744027849443,-15291.5960953,0.0004299,3]
[357380345,1744027849452,-699.338446,0.0004299,14]
[357380346,1744027849461,-699.338446,0.0004299,14]
[357380347,1744027849471,-227.27599,0.0004299,14]
[357380348,1744027849481,-227.27599,0.0004299,14]
[357380349,1744027849491,-228.49871313,0.00043,120]
[357380350,1744027849505,-36908.29271846,0.00043,30]
[357380351,1744027849515,-166.67,0.00043221,2]
[357380352,1744027849525,-7645.79804767,0.00043271,3]
[357380353,1744027849535,-13237.1086128,0.00043281,3]
[357380354,1744027849546,-200.0,0.00043291,7]
[357380355,1744027849556,-200.0,0.00043291,7]
[357380356,1744027849567,-200.0,0.00043291,7]
[357380357,1744027849576,-200.0,0.000434,120]
[357380358,1744027849587,-171.15,0.00043459,2]
[357380359,1744027849597,-1307.12,0.00043472,2]
[357380360,1744027849608,-1871.55,0.00043536,2]
[357380361,1744027849618,-1070.44671,0.00043562,120]
[357380362,1744027849628,-7645.79804767,0.00043638,3]
[357380363,1744027849638,-616.63444317,0.00043648,2]
[357380364,1744027849648,-1186.75843333,0.000437,120]
[357380365,1744027849659,-200.0,0.00043724,7]
[357380366,1744027849668,-200.0,0.00043724,7]
[357380367,1744027849678,-13237.1086128,0.00043841,3]
[357380368,1744027849688,-7645.79804767,0.00043842,3]
[357380369,1744027849699,-151.38,0.00043842,2]
[357380370,1744027849709,-26474.2172256,0.00043851,3]
[357380371,1744027849719,-151.0,0.00043861,14]
[357380372,1744027849728,-151.0,0.00043861,14]
[357380373,1744027849738,-61080.95632167,0.00043861,30]
[357380374,1744027849748,-503.50634492,0.00043873,10]
[357380375,1744027849758,-213.5866,0.00043888,7]
[357380376,1744027849768,-2190.21,0.000439,14]
[357380377,1744027849778,-1424.44813988,0.0004397,120]
[357380378,1744027849787,-160.97923196,0.00044,120]
[357380379,1744027849797,-500.0,0.00044,120]
[357380380,1744027849807,-200.0,0.00044,120]
[357380381,1744027849817,-1001.43,0.00044047,120]
[357380382,1744027849826,-9583.08772509,0.00044111,15]
[357380383,1744027849836,-200.0,0.00044161,7]
[357380384,1744027849845,-150.0,0.0004423,120]
[357380385,1744027849855,-173.73,0.00044239,2]
[357380386,1744027849865,-277.77413715,0.00044425,10]
[357380387,1744027849875,-1505.88550447,0.000445,120]
[357380388,1744027849885,-19446.60169171,0.000445,30]
[357380389,1744027849895,-1000.0,0.00044559,10]
[357380390,1744027849906,-1000.0,0.00044559,10]
[357380391,1744027849915,-200.0,0.00044602,7]
[357380392,1744027849925,-505.95711111,0.00044751,17]
[357380393,1744027849934,-229.6293017,0.000448,120]
[357380394,1744027849943,-151.0,0.00045,120]
[357380395,1744027849953,-151.0,0.00045,120]
[357380396,1744027849962,-1257.90712847,0.00045,2]
[357380397,1744027849971,-10059.68580798,0.00045,120]
[357380398,1744027849981,-2710.0519268,0.00045,30]
[357380399,1744027849990,-193.10946132,0.00045,2]
[357380400,1744027849999,-500.0,0.00045,120]
[357380401,1744027850009,-500.0,0.00045,120]
[357380402,1744027850018,-250.0,0.00045,120]
[357380403,1744027850029,-1000.0,0.00045,120]
[357380404,1744027850039,-171.15,0.00045115,2]
[357380405,1744027850048,-331.00484655,0.00045152,10]
[357380406,1744027850057,-1000.0,0.00045152,10]
[357380407,1744027850067,-1000.0,0.00045234,2]
[357380408,1744027850077,-1000.0,0.000454,7]
[357380409,1744027850086,-164.37,0.00045437,2]
[357380410,1744027850095,-166.67,0.00045475,2]
[357380411,1744027850104,-236.03245057,0.00045546,20]
[357380412,1744027850114,-711.27094273,0.000456,120]
[357380413,1744027850123,-150.0,0.000456,120]
[357380414,1744027850132,-699.338446,0.00045669,14]
[357380415,1744027850142,-699.338446,0.00045669,14]
[357380416,1744027850151,-227.27599,0.00045669,14]
[357380417,1744027850161,-227.27599,0.00045669,14]
[357380418,1744027850170,-24789.60472363,0.00045679,120]
[357380419,1744027850180,-151.0,0.00045679,14]
[357380420,1744027850189,-656.281935,0.00045679,14]
[357380421,1744027850198,-656.281935,0.00045679,14]
[357380422,1744027850208,-151.0,0.00045679,14]
[357380423,1744027850218,-2017.531787,0.00045679,14]
[357380424,1744027850228,-151.0,0.00045679,14]
[357380425,1744027850237,-151.0,0.00045679,14]
[357380426,1744027850247,-2017.531787,0.00045679,14]
[357380427,1744027850256,-160.414161,0.00045679,14]
[357380428,1744027850265,-151.0,0.00045679,14]
[357380429,1744027850275,-151.0,0.00045681,14]
[357380430,1744027850284,-151.0,0.00045681,14]
[357380431,1744027850294,-486.289909,0.00045681,14]
[357380432,1744027850304,-486.289909,0.00045681,14]
[357380433,1744027850318,-201.0,0.00045699,120]
[357380434,1744027850328,-9583.08772509,0.00045734,15]
[357380435,1744027850338,-443.76,0.00045787,120]
[357380436,1744027850347,-1871.55,0.00045799,2]
[357380437,1744027850357,-1000.0,0.000458,7]
[357380438,1744027850366,-3819.68558917,0.000459,119]
[357380439,1744027850375,-151.0,0.000459,14]
[357380440,1744027850385,-170.043109,0.0004598,14]
[357380441,1744027850396,-151.0,0.0004598,14]
[357380442,1744027850407,-151.0,0.0004598,14]
[357380443,1744027850416,-151.0,0.0004598,14]
[357380444,1744027850426,-151.0,0.0004598,14]
[357380445,1744027850435,-151.0,0.0004598,14]
[357380446,1744027850445,-595.661069,0.0004598,14]
[357380447,1744027850454,-595.661069,0.0004598,14]
[357380448,1744027850464,-151.0,0.0004599,14]
[357380449,1744027850474,-291.080996,0.0004599,14]
[357380450,1744027850483,-291.080996,0.0004599,14]
[357380451,1744027850493,-151.0,0.0004599,14]
[357380452,1744027850502,-151.0,0.0004599,14]
[357380453,1744027850511,-151.0,0.0004599,14]
[357380454,1744027850520,-151.0,0.0004599,14]
[357380455,1744027850532,-151.0,0.0004599,14]
[357380456,1744027850541,-25000.0,0.00046,120]
[357380457,1744027850550,-818.77071801,0.00046,60]
[357380458,1744027850559,-200.0,0.00046,120]
[357380459,1744027850569,-200.0,0.00046,120]
[357380460,1744027850578,-287.459399,0.00046227,14]
[357380461,1744027850588,-287.459399,0.00046227,14]
[357380462,1744027850597,-151.0,0.00046227,14]
[357380463,1744027850607,-969.737491,0.00046227,14]
[357380464,1744027850616,-969.737491,0.00046227,14]
[357380465,1744027850626,-151.0,0.00046227,14]
[357380466,1744027850635,-151.0,0.00046227,14]
[357380467,1744027850644,-151.0,0.00046227,14]
[357380468,1744027850653,-151.0,0.00046227,14]
[357380469,1744027850664,-151.0,0.00046227,14]
[357380470,1744027850673,-151.8,0.00046233,2]
[357380471,1744027850683,-2176.17232452,0.00046387,2]
[357380472,1744027850693,-1000.0,0.00046408,120]
[357380473,1744027850703,-291.39,0.00046551,2]
[357380474,1744027850713,-151.0,0.00046575,30]
[357380475,1744027850722,-151.0,0.00046575,30]
[357380476,1744027850732,-151.0,0.00046575,30]
[357380477,1744027850742,-151.0,0.00046575,30]
[357380478,1744027850751,-151.0,0.00046575,30]
[357380479,1744027850762,-151.0,0.00046575,30]
[357380480,1744027850772,-151.0,0.00046575,30]
[357380481,1744027850782,-151.0,0.00046575,30]
[357380482,1744027850792,-151.0,0.00046575,30]
[357380483,1744027850801,-2190.21,0.000466,14]
[357380484,1744027850811,-505.95711111,0.00046741,25]
[357380485,1744027850820,-171.15,0.00046772,2]
[357380486,1744027850830,-419.89896425,0.00046801,30]
[357380487,1744027850839,-1922.2802,0.00046888,30]
[357380488,1744027850849,-151.0,0.00046888,14]
[357380489,1744027850859,-2091.177409,0.00046888,14]
[357380490,1744027850868,-2091.177409,0.00046888,14]
[357380491,1744027850878,-1000.0,0.000469,7]
[357380492,1744027850887,-150.0,0.0004697,120]
[357380493,1744027850897,-164.8,0.00047078,2]
[357380494,1744027850906,-2000.0,0.000471,2]
[357380495,1744027850918,-305.195089,0.000471,14]
[357380496,1744027850927,-305.195089,0.000471,14]
[357380497,1744027850937,-272.725284,0.000471,14]
[357380498,1744027850947,-272.725284,0.000471,14]